fUST/lending_fUST_20260619
["ID","MTS","AMOUNT","RATE_DAILY","PERIOD"]
[425635890,1781841039000,-500.0,0.00016438,2]
[425635891,1781841039000,-500.0,0.00016438,2]
[425635892,1781841039000,-316.23101213,0.00016438,2]
[425635893,1781841039000,-500.0,0.00016438,2]
[425635899,1781841039000,-528.35105559,0.00016438,2]
[425635901,1781841039000,-500.0,0.00016438,2]
[425635894,1781841039000,-500.0,0.00016438,2]
[425635879,1781841039000,-500.0,0.00016438,2]
[425635900,1781841039000,-513.60185796,0.00016438,2]
[425635897,1781841039000,-500.0,0.00016438,2]
[425635902,1781841039000,-500.0,0.00016438,2]
[425635903,1781841039000,-500.0,0.00016438,2]
[425635907,1781841039000,-500.0,0.00016438,2]
[425635904,1781841039000,-500.0,0.00016438,2]
[425635905,1781841039000,-500.0,0.00016438,2]
[425635909,1781841039000,-500.0,0.00016438,2]
[425635910,1781841039000,-510.21091648,0.00016438,2]
[425635906,1781841039000,-500.0,0.00016438,2]
[425635911,1781841039000,-500.0,0.00016438,2]
[425635908,1781841039000,-500.0,0.00016438,2]
[425635847,1781841039000,-516.85566395,0.00016438,2]
[425635895,1781841039000,-510.00078812,0.00016438,2]
[425635883,1781841039000,-500.0,0.00016438,2]
[425635896,1781841039000,-500.0,0.00016438,2]
[425635886,1781841039000,-500.0,0.00016438,2]
[425635849,1781841039000,-500.0,0.00016438,2]
[425635880,1781841039000,-500.0,0.00016438,2]
[425635854,1781841039000,-500.0,0.00016438,2]
[425635855,1781841039000,-500.0,0.00016438,2]
[425635857,1781841039000,-500.0,0.00016438,2]
[425635858,1781841039000,-218.28039645,0.00016438,2]
[425635856,1781841039000,-1000.0,0.00016438,2]
[425635861,1781841039000,-500.0,0.00016438,2]
[425635860,1781841039000,-500.0,0.00016438,2]
[425635863,1781841039000,-500.0,0.00016438,2]
[425635874,1781841039000,-500.0,0.00016438,2]
[425635873,1781841039000,-500.0,0.00016438,2]
[425635862,1781841039000,-511.9743746,0.00016438,2]
[425635865,1781841039000,-500.0,0.00016438,2]
[425635859,1781841039000,-500.0,0.00016438,2]
[425635864,1781841039000,-500.0,0.00016438,2]
[425635885,1781841039000,-500.0,0.00016438,2]
[425635875,1781841039000,-526.70010882,0.00016438,2]
[425635878,1781841039000,-517.1299472,0.00016438,2]
[425635876,1781841039000,-514.7683376,0.00016438,2]
[425635872,1781841039000,-500.0,0.00016438,2]
[425635868,1781841039000,-500.0,0.00016438,2]
[425635877,1781841039000,-500.0,0.00016438,2]
[425635870,1781841039000,-500.0,0.00016438,2]
[425635869,1781841039000,-500.0,0.00016438,2]
[425635867,1781841039000,-500.0,0.00016438,2]
[425635866,1781841039000,-500.0,0.00016438,2]
[425635871,1781841039000,-368.66731003,0.00016438,2]
[425635958,1781841040000,-500.0,0.00016712,2]
[425635956,1781841040000,-500.0,0.00016712,2]
[425635954,1781841040000,-500.0,0.00016712,2]
[425635953,1781841040000,-500.0,0.00016712,2]
[425635952,1781841040000,-500.0,0.00016712,2]
[425635951,1781841040000,-500.0,0.00016712,2]
[425635961,1781841040000,-500.0,0.00016712,2]
[425635949,1781841040000,-500.0,0.00016712,2]
[425635950,1781841040000,-515.43706171,0.00016712,2]
[425635940,1781841040000,-500.0,0.00016712,2]
[425635947,1781841040000,-500.0,0.00016712,2]
[425635943,1781841040000,-500.0,0.00016712,2]
[425635960,1781841040000,-500.0,0.00016712,2]
[425635955,1781841040000,-500.0,0.00016712,2]
[425635972,1781841040000,-500.0,0.00016712,2]
[425635959,1781841040000,-500.0,0.00016712,2]
[425635963,1781841040000,-1000.0,0.00016712,2]
[425635973,1781841040000,-500.0,0.00016712,2]
[425635962,1781841040000,-500.0,0.00016712,2]
[425635964,1781841040000,-500.0,0.00016712,2]
[425635968,1781841040000,-500.0,0.00016712,2]
[425635966,1781841040000,-440.0,0.00016712,2]
[425635974,1781841040000,-500.0,0.00016712,2]
[425635969,1781841040000,-576.14,0.00016712,2]
[425635965,1781841040000,-258.53247867,0.00016712,2]
[425635970,1781841040000,-500.0,0.00016712,2]
[425635967,1781841040000,-500.0,0.00016712,2]
[425635941,1781841040000,-526.21417246,0.00016712,2]
[425635957,1781841040000,-610.77300082,0.00016712,2]
[425635945,1781841040000,-500.0,0.00016712,2]
[425635914,1781841040000,-1000.0,0.00016536,2]
[425635948,1781841040000,-500.0,0.00016712,2]
[425635971,1781841040000,-500.0,0.00016712,2]
[425635913,1781841040000,-1038.38822663,0.00016438,2]
[425635919,1781841040000,-500.0,0.00016712,2]
[425635912,1781841040000,-500.0,0.00016438,2]
[425635917,1781841040000,-500.0,0.00016711,2]
[425635922,1781841040000,-500.0,0.00016712,2]
[425635915,1781841040000,-500.0,0.00016693,2]
[425635920,1781841040000,-500.0,0.00016712,2]
[425635918,1781841040000,-242.47,0.00016712,2]
[425635921,1781841040000,-500.0,0.00016712,2]
[425635923,1781841040000,-529.03156468,0.00016712,2]
[425635916,1781841040000,-500.0,0.00016711,2]
[425635925,1781841040000,-500.0,0.00016712,2]
[425635935,1781841040000,-500.0,0.00016712,2]
[425635924,1781841040000,-500.0,0.00016712,2]
[425635926,1781841040000,-516.75055064,0.00016712,2]
[425635932,1781841040000,-500.0,0.00016712,2]
[425635933,1781841040000,-500.0,0.00016712,2]
[425635927,1781841040000,-290.46274213,0.00016712,2]
[425635928,1781841040000,-500.0,0.00016712,2]
[425635934,1781841040000,-500.0,0.00016712,2]
[425635931,1781841040000,-500.0,0.00016712,2]
[425635930,1781841040000,-500.0,0.00016712,2]
[425635936,1781841040000,-500.0,0.00016712,2]
[425635937,1781841040000,-500.0,0.00016712,2]
[425635938,1781841040000,-500.0,0.00016712,2]
[425635944,1781841040000,-500.0,0.00016712,2]
[425635946,1781841040000,-500.0,0.00016712,2]
[425635942,1781841040000,-500.0,0.00016712,2]
[425635939,1781841040000,-500.0,0.00016712,2]
[425635976,1781841040000,-500.0,0.00016712,2]
[425635929,1781841040000,-500.0,0.00016712,2]
[425635987,1781841040000,-500.0,0.00016712,2]
[425636005,1781841040000,-500.0,0.00016712,2]
[425636008,1781841040000,-300.0,0.00016766,2]
[425636006,1781841040000,-300.0,0.00016766,2]
[425636017,1781841040000,-300.0,0.00016766,2]
[425636015,1781841040000,-300.0,0.00016766,2]
[425636019,1781841040000,-300.0,0.00016766,2]
[425636026,1781841040000,-500.0,0.00016986,2]
[425636016,1781841040000,-300.0,0.00016766,2]
[425636021,1781841040000,-150.4,0.00016963,2]
[425636020,1781841040000,-300.0,0.00016766,2]
[425636018,1781841040000,-300.0,0.00016766,2]
[425636027,1781841040000,-500.0,0.00016986,2]
[425636034,1781841040000,-500.0,0.00016986,2]
[425636025,1781841040000,-598.65070454,0.00016986,2]
[425636022,1781841040000,-500.0,0.00016986,2]
[425636023,1781841040000,-161.28,0.00016986,2]
[425636024,1781841040000,-500.0,0.00016986,2]
[425636039,1781841040000,-512.35462565,0.00016986,2]
[425636029,1781841040000,-545.63803097,0.00016986,2]
[425636028,1781841040000,-500.0,0.00016986,2]
[425636040,1781841040000,-509.18422547,0.00016986,2]
[425636030,1781841040000,-500.0,0.00016986,2]
[425636031,1781841040000,-500.0,0.00016986,2]
[425636032,1781841040000,-500.0,0.00016986,2]
[425636033,1781841040000,-515.72322423,0.00016986,2]
[425636037,1781841040000,-513.40286817,0.00016986,2]
[425636038,1781841040000,-500.0,0.00016986,2]
[425636036,1781841040000,-500.0,0.00016986,2]
[425635986,1781841040000,-516.49213995,0.00016712,2]
[425636010,1781841040000,-300.0,0.00016766,2]
[425636009,1781841040000,-300.0,0.00016766,2]
[425636035,1781841040000,-517.06163319,0.00016986,2]
[425636011,1781841040000,-300.0,0.00016766,2]
[425636007,1781841040000,-300.0,0.00016766,2]
[425635988,1781841040000,-500.0,0.00016712,2]
[425635975,1781841040000,-500.0,0.00016712,2]
[425635977,1781841040000,-500.0,0.00016712,2]
[425635980,1781841040000,-500.0,0.00016712,2]
[425635985,1781841040000,-509.04085,0.00016712,2]
[425635979,1781841040000,-500.0,0.00016712,2]
[425635982,1781841040000,-500.0,0.00016712,2]
[425635981,1781841040000,-500.0,0.00016712,2]
[425635983,1781841040000,-500.0,0.00016712,2]
[425635984,1781841040000,-528.50917953,0.00016712,2]
[425635989,1781841040000,-532.26,0.00016712,2]
[425635992,1781841040000,-293.27216693,0.00016712,2]
[425635991,1781841040000,-500.0,0.00016712,2]
[425635995,1781841040000,-500.0,0.00016712,2]
[425635978,1781841040000,-500.0,0.00016712,2]
[425635993,1781841040000,-500.0,0.00016712,2]
[425635999,1781841040000,-500.0,0.00016712,2]
[425636004,1781841040000,-509.3884614,0.00016712,2]
[425636014,1781841040000,-300.0,0.00016766,2]
[425636013,1781841040000,-300.0,0.00016766,2]
[425636012,1781841040000,-300.0,0.00016766,2]
[425636002,1781841040000,-510.13554831,0.00016712,2]
[425636001,1781841040000,-500.0,0.00016712,2]
[425635997,1781841040000,-500.0,0.00016712,2]
[425635994,1781841040000,-599.3,0.00016712,2]
[425635998,1781841040000,-500.0,0.00016712,2]
[425636000,1781841040000,-500.0,0.00016712,2]
[425636003,1781841040000,-500.0,0.00016712,2]
[425635990,1781841040000,-500.0,0.00016712,2]
[425635996,1781841040000,-500.0,0.00016712,2]
[425636081,1781841041000,-500.0,0.00017258,2]
[425636072,1781841041000,-539.49924728,0.00017258,2]
[425636070,1781841041000,-500.0,0.00016986,2]
[425636073,1781841041000,-500.0,0.00017258,2]
[425636088,1781841041000,-500.0,0.0001726,2]
[425636079,1781841041000,-500.0,0.00017258,2]
[425636077,1781841041000,-500.0,0.00017258,2]
[425636080,1781841041000,-500.0,0.00017258,2]
[425636084,1781841041000,-500.0,0.00017259,2]
[425636082,1781841041000,-572.27,0.00017258,2]
[425636071,1781841041000,-505.17335309,0.00017258,2]
[425636078,1781841041000,-500.0,0.00017258,2]
[425636098,1781841041000,-500.0,0.0001726,2]
[425636085,1781841041000,-3152.8094,0.00017259,2]
[425636087,1781841041000,-500.0,0.00017259,2]
[425636086,1781841041000,-500.0,0.00017259,2]
[425636090,1781841041000,-500.0,0.0001726,2]
[425636089,1781841041000,-500.0,0.0001726,2]
[425636095,1781841041000,-500.0,0.0001726,2]
[425636101,1781841041000,-500.0,0.0001726,2]
[425636102,1781841041000,-2642.57,0.00017532,2]
[425636099,1781841041000,-500.0,0.0001726,2]
[425636093,1781841041000,-500.0,0.0001726,2]
[425636091,1781841041000,-500.0,0.0001726,2]
[425636074,1781841041000,-501.47540124,0.00017258,2]
[425636096,1781841041000,-500.0,0.0001726,2]
[425636083,1781841041000,-500.0,0.00017258,2]
[425636069,1781841041000,-150.21926563,0.00016986,2]
[425636061,1781841041000,-500.0,0.00016986,2]
[425636064,1781841041000,-501.26467879,0.00016986,2]
[425636092,1781841041000,-500.0,0.0001726,2]
[425636041,1781841041000,-500.0,0.00016986,2]
[425636043,1781841041000,-1001.99037754,0.00016986,2]
[425636042,1781841041000,-500.0,0.00016986,2]
[425636044,1781841041000,-513.88395859,0.00016986,2]
[425636048,1781841041000,-160.62,0.00016986,2]
[425636045,1781841041000,-509.11887457,0.00016986,2]
[425636047,1781841041000,-500.0,0.00016986,2]
[425636050,1781841041000,-630.42,0.00016986,2]
[425636046,1781841041000,-433.82,0.00016986,2]
[425636049,1781841041000,-500.0,0.00016986,2]
[425636051,1781841041000,-508.2768255,0.00016986,2]
[425636053,1781841041000,-500.0,0.00016986,2]
[425636062,1781841041000,-505.13637702,0.00016986,2]
[425636063,1781841041000,-500.0,0.00016986,2]
[425636058,1781841041000,-532.26,0.00016986,2]
[425636054,1781841041000,-508.20778105,0.00016986,2]
[425636060,1781841041000,-503.7141754,0.00016986,2]
[425636055,1781841041000,-504.94938691,0.00016986,2]
[425636057,1781841041000,-508.9141025,0.00016986,2]
[425636059,1781841041000,-500.0,0.00016986,2]
[425636056,1781841041000,-501.14837005,0.00016986,2]
[425636065,1781841041000,-500.0,0.00016986,2]
[425636075,1781841041000,-2642.57,0.00017258,2]
[425636066,1781841041000,-500.0,0.00016986,2]
[425636067,1781841041000,-500.0,0.00016986,2]
[425636076,1781841041000,-500.0,0.00017258,2]
[425636068,1781841041000,-500.0,0.00016986,2]
[425636100,1781841041000,-212.74604116,0.0001726,2]
[425636052,1781841041000,-477.82,0.00016986,2]
[425636094,1781841041000,-500.0,0.0001726,2]
[425636140,1781841041000,-500.0,0.00017806,2]
[425636131,1781841041000,-500.0,0.00017718,2]
[425636129,1781841041000,-500.0,0.00017718,2]
[425636135,1781841041000,-623.99530424,0.00017806,2]
[425636134,1781841041000,-518.07520966,0.00017806,2]
[425636141,1781841041000,-500.0,0.00017806,2]
[425636139,1781841041000,-500.0,0.00017806,2]
[425636143,1781841041000,-500.0,0.00017806,2]
[425636154,1781841041000,-500.0,0.00017806,2]
[425636153,1781841041000,-500.0,0.00017806,2]
[425636142,1781841041000,-500.0,0.00017806,2]
[425636147,1781841041000,-500.0,0.00017806,2]
[425636144,1781841041000,-500.0,0.00017806,2]
[425636161,1781841041000,-500.0,0.00017806,2]
[425636145,1781841041000,-500.0,0.00017806,2]
[425636146,1781841041000,-500.0,0.00017806,2]
[425636149,1781841041000,-500.0,0.00017806,2]
[425636151,1781841041000,-500.0,0.00017806,2]
[425636148,1781841041000,-500.0,0.00017806,2]
[425636150,1781841041000,-510.38654806,0.00017806,2]
[425636152,1781841041000,-513.05032807,0.00017806,2]
[425636097,1781841041000,-532.26,0.0001726,2]
[425636157,1781841041000,-500.0,0.00017806,2]
[425636159,1781841041000,-528.72521038,0.00017806,2]
[425636158,1781841041000,-500.0,0.00017806,2]
[425636160,1781841041000,-500.0,0.00017806,2]
[425636156,1781841041000,-500.0,0.00017806,2]
[425636132,1781841041000,-500.0,0.00017805,2]
[425636133,1781841041000,-511.46986727,0.00017806,2]
[425636155,1781841041000,-500.0,0.00017806,2]
[425636138,1781841041000,-513.96248832,0.00017806,2]
[425636137,1781841041000,-500.0,0.00017806,2]
[425636104,1781841041000,-500.0,0.00017532,2]
[425636103,1781841041000,-500.0,0.00017532,2]
[425636115,1781841041000,-500.0,0.00017534,2]
[425636111,1781841041000,-3152.8094,0.00017533,2]
[425636113,1781841041000,-500.0,0.00017533,2]
[425636114,1781841041000,-500.0,0.00017534,2]
[425636107,1781841041000,-500.0,0.00017532,2]
[425636105,1781841041000,-500.0,0.00017532,2]
[425636108,1781841041000,-500.0,0.00017532,2]
[425636112,1781841041000,-500.0,0.00017533,2]
[425636109,1781841041000,-572.27,0.00017532,2]
[425636106,1781841041000,-500.0,0.00017532,2]
[425636117,1781841041000,-523.54,0.00017534,2]
[425636110,1781841041000,-500.0,0.00017532,2]
[425636116,1781841041000,-500.0,0.00017534,2]
[425636127,1781841041000,-4171.77990832,0.00017561,2]
[425636130,1781841041000,-500.0,0.00017718,2]
[425636125,1781841041000,-500.0,0.00017534,2]
[425636123,1781841041000,-532.26,0.00017534,2]
[425636119,1781841041000,-500.0,0.00017534,2]
[425636128,1781841041000,-351.6172416,0.0001767,2]
[425636121,1781841041000,-500.0,0.00017534,2]
[425636120,1781841041000,-500.0,0.00017534,2]
[425636122,1781841041000,-500.0,0.00017534,2]
[425636118,1781841041000,-278.11,0.00017534,2]
[425636136,1781841041000,-500.0,0.00017806,2]
[425636126,1781841041000,-291.28,0.00017534,2]
[425636124,1781841041000,-281.44,0.00017534,2]
[425636188,1781841042000,-500.0,0.00017806,2]
[425636202,1781841042000,-562.58382377,0.00017855,2]
[425636201,1781841042000,-312.54656876,0.00017855,2]
[425636190,1781841042000,-500.0,0.00017807,2]
[425636192,1781841042000,-500.0,0.00017808,2]
[425636195,1781841042000,-500.0,0.00017808,2]
[425636199,1781841042000,-500.0,0.00017808,2]
[425636196,1781841042000,-500.0,0.00017808,2]
[425636193,1781841042000,-295.30286658,0.00017808,2]
[425636191,1781841042000,-500.0,0.00017808,2]
[425636207,1781841042000,-280.42619092,0.00017858,2]
[425636194,1781841042000,-500.0,0.00017808,2]
[425636200,1781841042000,-152.745412,0.00017808,2]
[425636198,1781841042000,-532.26,0.00017808,2]
[425636203,1781841042000,-1000.14902004,0.00017855,2]
[425636214,1781841042000,-500.0,0.0001808,2]
[425636204,1781841042000,-461.113608,0.00017855,2]
[425636205,1781841042000,-155.79232829,0.00017855,2]
[425636206,1781841042000,-1562.73284381,0.00017855,2]
[425636209,1781841042000,-500.0,0.00018079,2]
[425636178,1781841042000,-260.0,0.00017806,2]
[425636197,1781841042000,-500.0,0.00017808,2]
[425636185,1781841042000,-300.0,0.00017806,2]
[425636168,1781841042000,-500.0,0.00017806,2]
[425636187,1781841042000,-572.27,0.00017806,2]
[425636162,1781841042000,-500.0,0.00017806,2]
[425636163,1781841042000,-500.0,0.00017806,2]
[425636164,1781841042000,-508.61644466,0.00017806,2]
[425636175,1781841042000,-500.0,0.00017806,2]
[425636173,1781841042000,-500.0,0.00017806,2]
[425636174,1781841042000,-328.2,0.00017806,2]
[425636176,1781841042000,-500.0,0.00017806,2]
[425636170,1781841042000,-500.0,0.00017806,2]
[425636166,1781841042000,-518.25401357,0.00017806,2]
[425636171,1781841042000,-2642.57,0.00017806,2]
[425636189,1781841042000,-500.0,0.00017807,2]
[425636169,1781841042000,-500.0,0.00017806,2]
[425636172,1781841042000,-500.0,0.00017806,2]
[425636167,1781841042000,-527.29987392,0.00017806,2]
[425636177,1781841042000,-500.0,0.00017806,2]
[425636179,1781841042000,-500.0,0.00017806,2]
[425636183,1781841042000,-500.0,0.00017806,2]
[425636180,1781841042000,-500.0,0.00017806,2]
[425636181,1781841042000,-500.0,0.00017806,2]
[425636182,1781841042000,-500.0,0.00017806,2]
[425636184,1781841042000,-500.0,0.00017806,2]
[425636186,1781841042000,-516.27422182,0.00017806,2]
[425636165,1781841042000,-560.36681175,0.00017806,2]
[425636210,1781841042000,-500.0,0.0001808,2]
[425636212,1781841042000,-504.3406961,0.0001808,2]
[425636215,1781841042000,-507.19365873,0.0001808,2]
[425636240,1781841042000,-500.0,0.0001808,2]
[425636242,1781841042000,-500.0,0.0001808,2]
[425636241,1781841042000,-500.0,0.0001808,2]
[425636245,1781841042000,-360.25791843,0.0001808,2]
[425636243,1781841042000,-500.0,0.0001808,2]
[425636246,1781841042000,-500.0,0.0001808,2]
[425636244,1781841042000,-500.0,0.0001808,2]
[425636247,1781841042000,-500.0,0.0001808,2]
[425636249,1781841042000,-572.27,0.0001808,2]
[425636253,1781841042000,-500.0,0.00018082,2]
[425636254,1781841042000,-500.0,0.00018082,2]
[425636248,1781841042000,-500.0,0.0001808,2]
[425636252,1781841042000,-151.0,0.00018081,2]
[425636251,1781841042000,-151.0,0.00018081,2]
[425636250,1781841042000,-500.0,0.00018081,2]
[425636256,1781841042000,-500.0,0.00018082,2]
[425636257,1781841042000,-500.0,0.00018082,2]
[425636258,1781841042000,-310.29277154,0.00018082,2]
[425636260,1781841042000,-500.0,0.00018082,2]
[425636259,1781841042000,-532.26,0.00018082,2]
[425636208,1781841042000,-500.0,0.00017989,2]
[425636239,1781841042000,-500.0,0.0001808,2]
[425636237,1781841042000,-2642.57,0.0001808,2]
[425636255,1781841042000,-500.0,0.00018082,2]
[425636238,1781841042000,-500.0,0.0001808,2]
[425636211,1781841042000,-425.41387917,0.0001808,2]
[425636236,1781841042000,-500.0,0.0001808,2]
[425636213,1781841042000,-448.86452322,0.0001808,2]
[425636227,1781841042000,-500.0,0.0001808,2]
[425636220,1781841042000,-500.0,0.0001808,2]
[425636218,1781841042000,-500.0,0.0001808,2]
[425636216,1781841042000,-503.67136067,0.0001808,2]
[425636219,1781841042000,-500.0,0.0001808,2]
[425636223,1781841042000,-500.0,0.0001808,2]
[425636221,1781841042000,-500.0,0.0001808,2]
[425636224,1781841042000,-500.0,0.0001808,2]
[425636217,1781841042000,-500.0,0.0001808,2]
[425636232,1781841042000,-500.0,0.0001808,2]
[425636226,1781841042000,-500.0,0.0001808,2]
[425636225,1781841042000,-500.0,0.0001808,2]
[425636229,1781841042000,-500.0,0.0001808,2]
[425636230,1781841042000,-500.0,0.0001808,2]
[425636228,1781841042000,-500.0,0.0001808,2]
[425636231,1781841042000,-500.0,0.0001808,2]
[425636235,1781841042000,-500.0,0.0001808,2]
[425636233,1781841042000,-500.0,0.0001808,2]
[425636222,1781841042000,-500.0,0.0001808,2]
[425636234,1781841042000,-500.0,0.0001808,2]
[425636299,1781841043000,-514.63526999,0.00018354,2]
[425636297,1781841043000,-508.71487058,0.00018354,2]
[425636296,1781841043000,-514.74999814,0.00018354,2]
[425636305,1781841043000,-514.85371696,0.00018354,2]
[425636304,1781841043000,-500.0,0.00018354,2]
[425636300,1781841043000,-500.0,0.00018354,2]
[425636293,1781841043000,-509.21432276,0.00018354,2]
[425636308,1781841043000,-494.3066439,0.00018354,2]
[425636298,1781841043000,-501.45467787,0.00018354,2]
[425636295,1781841043000,-517.34088695,0.00018354,2]
[425636302,1781841043000,-508.14833466,0.00018354,2]
[425636307,1781841043000,-508.73285982,0.00018354,2]
[425636301,1781841043000,-504.19309165,0.00018354,2]
[425636317,1781841043000,-506.69958302,0.00018356,2]
[425636306,1781841043000,-510.3276532,0.00018354,2]
[425636309,1781841043000,-500.0,0.00018354,2]
[425636312,1781841043000,-500.0,0.00018354,2]
[425636311,1781841043000,-2642.57,0.00018354,2]
[425636310,1781841043000,-500.0,0.00018354,2]
[425636321,1781841043000,-3333.33333333,0.00018356,7]
[425636320,1781841043000,-3333.33333333,0.00018356,2]
[425636319,1781841043000,-211.3364854,0.00018356,7]
[425636314,1781841043000,-500.0,0.00018354,2]
[425636313,1781841043000,-500.0,0.00018354,2]
[425636315,1781841043000,-572.27,0.00018354,2]
[425636294,1781841043000,-510.62979568,0.00018354,2]
[425636303,1781841043000,-508.89560542,0.00018354,2]
[425636290,1781841043000,-500.0,0.00018354,2]
[425636268,1781841043000,-359.50501812,0.00018229,2]
[425636288,1781841043000,-225.97,0.0001823,2]
[425636318,1781841043000,-281.84093106,0.00018356,2]
[425636262,1781841043000,-477.52,0.0001822,3]
[425636261,1781841043000,-152.0,0.0001811,7]
[425636263,1781841043000,-500.0,0.00018224,2]
[425636265,1781841043000,-500.0,0.00018229,2]
[425636271,1781841043000,-4906.711289,0.0001823,2]
[425636264,1781841043000,-524.094705,0.00018225,2]
[425636270,1781841043000,-151.132076,0.0001823,2]
[425636272,1781841043000,-4906.711289,0.0001823,2]
[425636274,1781841043000,-4906.711289,0.0001823,2]
[425636275,1781841043000,-151.0,0.0001823,2]
[425636273,1781841043000,-4906.711289,0.0001823,2]
[425636289,1781841043000,-329.99425591,0.00018354,2]
[425636276,1781841043000,-151.0,0.0001823,2]
[425636285,1781841043000,-151.0,0.0001823,2]
[425636277,1781841043000,-1081.631774,0.0001823,2]
[425636279,1781841043000,-1081.631774,0.0001823,2]
[425636280,1781841043000,-1081.631774,0.0001823,2]
[425636282,1781841043000,-1081.631774,0.0001823,2]
[425636284,1781841043000,-1081.631774,0.0001823,2]
[425636283,1781841043000,-1081.631774,0.0001823,2]
[425636281,1781841043000,-1081.631774,0.0001823,2]
[425636286,1781841043000,-151.0,0.0001823,2]
[425636287,1781841043000,-387807.50646201,0.0001823,2]
[425636291,1781841043000,-515.36565571,0.00018354,2]
[425636292,1781841043000,-530.15104884,0.00018354,2]
[425636278,1781841043000,-1081.631774,0.0001823,2]
[425636316,1781841043000,-500.0,0.00018355,2]
[425636341,1781841043000,-532.26,0.0001863,2]
[425636322,1781841043000,-500.0,0.00018356,2]
[425636351,1781841043000,-500.0,0.00018899,3]
[425636356,1781841043000,-500.0,0.00018899,3]
[425636357,1781841043000,-500.0,0.00018899,3]
[425636355,1781841043000,-500.0,0.00018899,3]
[425636358,1781841043000,-500.0,0.00018899,3]
[425636354,1781841043000,-500.0,0.00018899,3]
[425636359,1781841043000,-500.0,0.00018899,3]
[425636362,1781841043000,-500.0,0.00018899,3]
[425636363,1781841043000,-500.0,0.00018899,3]
[425636369,1781841043000,-500.0,0.00018899,3]
[425636368,1781841043000,-500.0,0.00018899,3]
[425636366,1781841043000,-391.3604943,0.00018899,3]
[425636353,1781841043000,-500.0,0.00018899,3]
[425636364,1781841043000,-500.0,0.00018899,3]
[425636367,1781841043000,-400.45768449,0.00018899,3]
[425636373,1781841043000,-500.0,0.00018899,3]
[425636371,1781841043000,-500.0,0.00018899,3]
[425636372,1781841043000,-500.0,0.00018899,3]
[425636374,1781841043000,-500.0,0.00018899,3]
[425636377,1781841043000,-500.0,0.00018899,3]
[425636381,1781841043000,-500.0,0.00018899,3]
[425636380,1781841043000,-500.0,0.00018899,3]
[425636378,1781841043000,-500.0,0.00018899,3]
[425636379,1781841043000,-500.0,0.00018899,3]
[425636375,1781841043000,-620.60610541,0.00018899,3]
[425636323,1781841043000,-500.0,0.00018356,2]
[425636365,1781841043000,-500.0,0.00018899,3]
[425636360,1781841043000,-500.0,0.00018899,3]
[425636370,1781841043000,-500.0,0.00018899,3]
[425636361,1781841043000,-500.0,0.00018899,3]
[425636352,1781841043000,-464.16754783,0.00018899,3]
[425636333,1781841043000,-2642.57,0.00018628,2]
[425636324,1781841043000,-500.0,0.00018356,2]
[425636325,1781841043000,-500.0,0.00018356,2]
[425636329,1781841043000,-1658.00650149,0.00018382,2]
[425636334,1781841043000,-500.0,0.00018628,2]
[425636326,1781841043000,-532.26,0.00018356,2]
[425636327,1781841043000,-500.0,0.00018356,2]